bitfinex/quotes_SOLUSD_20250102
["timestamp","ask_amount","ask_price","bid_price","bid_amount"]
[1735815698973,0.10548637,207.25,207.2,15.78749995]
[1735815700463,0.10548637,207.25,207.21,8.06382888]
[1735815701659,0.10548637,207.25,207.24,51.84071288]
[1735815701859,0.10548637,207.25,207.24,52.56415226]
[1735815703866,0.09614496,207.26,207.25,35.839584]
[1735815704090,0.09614496,207.26,207.25,43.90341288]
[1735815704761,0.19132826,207.26,207.25,43.90341288]
[1735815705376,0.0951833,207.26,207.25,43.90341288]
[1735815705577,0.0951833,207.26,207.25,179.50341288]
[1735815709685,0.08564659,207.3,207.28,10.0]
[1735815709897,8.06382888,207.44,207.33,20.0]
[1735815710188,0.73645514,207.45,207.33,20.0]
[1735815710189,8.06382888,207.43,207.33,52.56387181]
[1735815710480,8.06382888,207.42,207.33,52.56387181]
[1735815711186,8.06382888,207.42,207.33,64.62187181]
[1735815711388,8.06382888,207.43,207.33,64.62187181]
[1735815712091,9.11465363,207.52,207.39,140.6]
[1735815712382,7.55795363,207.52,207.51,31.84071288]
[1735815712599,7.55795363,207.52,207.51,32.56341708]
[1735815712965,1.5567,207.58,207.52,23.776884]
[1735815713188,1.5567,207.58,207.57,8.06382888]
[1735815714273,15.85236241,207.63,207.57,8.06382888]
[1735815714274,1.5567,207.63,207.57,8.06382888]
[1735815714485,1.5567,207.63,207.59,8.06382888]
[1735815714778,1.5567,207.63,207.6,8.06382888]
[1735815715178,1.5567,207.63,207.61,8.06382888]
[1735815716071,1.5567,207.63,207.58,24.49927312]
[1735815716269,10.37188402,207.68,207.58,24.49927312]
[1735815716470,1.5716,207.68,207.62,8.06382888]
[1735815717493,9.63542888,207.68,207.62,8.06382888]
[1735815718696,9.63542888,207.68,207.61,8.06382888]
[1735815719897,9.63542888,207.68,207.58,24.49927312]
[1735815719898,8.06382888,207.67,207.58,24.49927312]
[1735815720085,8.06382888,207.67,207.61,8.06382888]
[1735815720282,8.06382888,207.67,207.6,8.06382888]
[1735815720488,8.06382888,207.63,207.57,8.063829]
[1735815720783,8.06382888,207.59,207.52,8.06382888]
[1735815720976,8.06382888,207.59,207.48,149.55113702]
[1735815720977,4.99999999,207.66,207.54,8.063829]
[1735815721177,20.0,207.64,207.49,10.08786254]
[1735815721385,8.06382888,207.57,207.5,23.776884]
[1735815721582,8.06382888,207.57,207.5,40.62713288]
[1735815722385,8.06382888,207.57,207.5,16.85024888]
[1735815722799,8.06382888,207.57,207.5,8.06382888]
[1735815723496,8.06382888,207.57,207.51,8.06382888]
[1735815724103,8.06382888,207.57,207.5,8.06382888]
[1735815724281,12.56842208,207.57,207.5,36.34530608]
[1735815725311,12.56842208,207.57,207.5,37.06799323]
[1735815725480,12.56842208,207.58,207.51,12.56842208]
[1735815726107,12.56842208,207.55,207.49,12.56842208]
[1735815726398,12.56842208,207.56,207.49,12.56842208]
[1735815727604,12.56842208,207.57,207.5,12.56842208]
[1735815729981,12.56842208,207.58,207.51,12.56842208]
[1735815731777,12.56842208,207.61,207.54,12.56842208]
[1735815732091,12.56842208,207.61,207.52,24.49960144]
[1735815732092,1.5614,207.64,207.58,12.56842208]
[1735815732298,1.5614,207.64,207.56,23.776884]
[1735815732299,12.56842208,207.66,207.59,13.29085069]
[1735815732505,12.56842208,207.67,207.6,12.56842208]
[1735815732699,12.56842208,207.66,207.6,12.56842208]
[1735815733205,12.56842208,207.66,207.59,12.56842208]
[1735815733706,12.56842208,207.65,207.58,23.776884]
[1735815733897,12.56842208,207.65,207.58,36.34530608]
[1735815734994,12.56842208,207.64,207.58,23.776884]
[1735815735301,12.56842208,207.65,207.58,36.34530608]
[1735815735485,12.56842208,207.66,207.6,36.34530608]
[1735815735988,12.56842208,207.66,207.6,12.56842208]
[1735815736593,12.56842208,207.67,207.61,23.776884]
[1735815736795,12.56842208,207.68,207.62,12.56842208]
[1735815737102,12.56842208,207.69,207.62,12.56842208]
[1735815737298,12.56842208,207.69,207.63,24.49915788]
[1735815737903,12.56842208,207.68,207.61,12.56842208]
[1735815738089,12.56842208,207.67,207.6,12.56842208]
[1735815738406,13.5813,207.74,207.6,12.56842208]
[1735815738585,12.56842208,207.68,207.6,13.29073512]
[1735815739421,12.56842208,207.67,207.6,0.72231304]
[1735815739782,12.56842208,207.67,207.61,23.776884]
[1735815740086,12.56842208,207.67,207.62,0.72228857]
[1735815740907,32.56842208,207.64,207.57,0.7222602]
[1735815741133,32.56842208,207.64,207.49,1.6446]
[1735815741134,12.56842208,207.59,207.49,1.6446]
[1735815741408,12.56842208,207.57,207.49,1.6446]
[1735815741826,12.56842208,207.58,207.51,23.776884]
[1735815742027,12.56842208,207.58,207.51,36.34530608]
[1735815742312,12.56842208,207.59,207.53,23.776884]
[1735815742509,12.56842208,207.59,207.51,36.34530608]
[1735815742715,12.56842208,207.58,207.51,36.34530608]
[1735815743115,12.56842208,207.58,207.5,12.56842208]
[1735815743613,12.56842208,207.58,207.51,12.56842208]
[1735815743816,12.56842208,207.6,207.53,36.34530608]
[1735815747120,32.56842208,207.61,207.53,36.34530608]
[1735815749237,32.56842208,207.61,207.54,12.56842208]
[1735815749405,32.56842208,207.61,207.53,12.56842208]
[1735815749904,12.56842208,207.61,207.53,12.56842208]
[1735815750224,8.04078251,207.61,207.54,1.30331294]
[1735815751213,8.04078251,207.61,207.53,8.04078251]
[1735815752207,8.04078251,207.61,207.54,1.30698433]
[1735815753029,8.04078251,207.61,207.55,1.30698433]
[1735815753327,0.5,207.67,207.59,8.04078251]
[1735815753523,8.04078251,207.65,207.59,8.04078251]
[1735815753736,8.54078251,207.64,207.6,1.30698433]
[1735815753907,8.04078251,207.64,207.6,1.30698433]
[1735815754413,8.04078251,207.64,207.57,8.04078251]
[1735815754414,8.04078251,207.64,207.61,1.30698433]
[1735815754926,8.04078251,207.64,207.62,1.30698433]
[1735815755631,8.04078251,207.64,207.63,1.30698433]
[1735815756216,8.04078251,207.66,207.63,1.30698433]
[1735815756929,8.04078251,207.66,207.64,1.30698433]
[1735815757430,8.04078251,207.66,207.65,1.30698433]
[1735815758225,12.5377,207.68,207.65,1.30698433]
[1735815758432,8.04078251,207.66,207.65,1.30698433]
[1735815758824,8.04078251,207.66,207.59,23.776884]
[1735815759038,8.04078251,207.65,207.59,23.776884]
[1735815759519,8.04078251,207.65,207.6,1.31517308]
[1735815759935,8.04078251,207.65,207.61,1.31517308]
[1735815760614,8.04078251,207.65,207.62,1.31517308]
[1735815761539,8.04078251,207.65,207.63,1.31517308]
[1735815761916,8.04078251,207.65,207.59,23.776884]
[1735815763920,8.04078251,207.65,207.6,1.31525796]
[1735815764136,8.04078251,207.63,207.6,1.31525796]
[1735815764314,0.5,207.62,207.6,1.31525796]
[1735815764519,8.04078251,207.61,207.6,1.31525796]
[1735815766930,8.04078251,207.61,207.53,7.57533702]
[1735815767237,8.04078251,207.61,207.54,8.04078251]
[1735815767632,8.04078251,207.61,207.55,1.31638068]
[1735815768238,8.04078251,207.61,207.56,1.31638068]
[1735815768727,8.04078251,207.61,207.57,1.31638068]
[1735815769435,12.039,207.66,207.56,23.776884]
[1735815769617,8.04078251,207.63,207.56,23.776884]
[1735815770525,14.0453,207.69,207.58,23.776884]
[1735815770843,8.04078251,207.66,207.59,8.04078251]
[1735815771338,8.04078251,207.66,207.6,1.31461425]
[1735815771541,8.04078251,207.65,207.6,1.31461425]
[1735815771919,8.04078251,207.65,207.61,1.31461425]
[1735815772443,8.04078251,207.65,207.62,1.31461425]
[1735815772737,8.04078251,207.64,207.62,1.31461425]
[1735815772947,8.04078251,207.63,207.62,1.31461425]
[1735815773123,8.04078251,207.63,207.57,23.776884]
[1735815773331,8.04078251,207.62,207.57,23.776884]
[1735815773841,8.04078251,207.62,207.58,1.31588015]
[1735815774019,8.04078251,207.61,207.58,1.31588015]
[1735815774417,8.04078251,207.6,207.58,1.31588015]
[1735815774632,8.04078251,207.6,207.59,1.31588015]
[1735815775239,8.04078251,207.6,207.54,8.04078251]
[1735815775443,8.04078251,207.6,207.53,8.04078251]
[1735815775845,8.04078251,207.6,207.54,1.3168313]
[1735815776455,8.04078251,207.6,207.55,1.3168313]
[1735815776947,8.04078251,207.6,207.56,1.3168313]
[1735815777643,8.04078251,207.6,207.57,1.3168313]
[1735815777842,8.04078251,207.6,207.58,1.3168313]
[1735815778754,8.04078251,207.6,207.53,8.04078251]
[1735815779254,8.04078251,207.6,207.54,1.31735061]
[1735815779539,8.04078251,207.59,207.54,1.31735061]
[1735815779943,8.04078251,207.59,207.55,1.31735061]
[1735815780457,8.04078251,207.6,207.55,1.31735061]
[1735815780847,8.04078251,207.6,207.56,1.31735061]
[1735815781663,8.04078251,207.6,207.57,1.31735061]
[1735815782253,8.04078251,207.6,207.58,1.31735061]
[1735815782742,8.04078251,207.6,207.59,1.31735061]
[1735815786743,0.5,207.68,207.59,1.31735061]
[1735815786963,8.04078251,207.66,207.59,9.35813312]
[1735815787351,8.04078251,207.65,207.59,1.31735061]
[1735815787551,8.04078251,207.64,207.59,1.31735061]
[1735815787865,8.04078251,207.64,207.6,1.31735061]
[1735815788364,8.04078251,207.61,207.6,1.31735061]
[1735815788664,8.04078251,207.61,207.52,31.35222102]
[1735815788864,8.04078251,207.59,207.52,39.39300353]
[1735815789052,8.04078251,207.59,207.53,1.31874253]
[1735815789952,8.04078251,207.59,207.54,1.31874253]
[1735815790745,8.04078251,207.59,207.55,1.31874253]
[1735815790941,8.04078251,207.6,207.55,1.31874253]
[1735815791471,8.04078251,207.6,207.56,1.31874253]
[1735815792045,8.04078251,207.6,207.57,1.31874253]
[1735815792962,8.04078251,207.6,207.58,1.31874253]
[1735815793657,8.04078251,207.6,207.59,1.31874253]
[1735815795673,8.04078251,207.61,207.59,1.31874253]
[1735815795847,8.04078251,207.6,207.59,1.31874253]
[1735815796053,8.04078251,207.6,207.52,7.57533702]
[1735815796253,8.04078251,207.56,207.52,7.57533702]
[1735815796662,8.04078251,207.56,207.53,1.31966806]
[1735815797471,8.04078251,207.56,207.5,7.57533702]
[1735815797472,8.04078251,207.56,207.54,1.31966806]
[1735815797645,8.04078251,207.57,207.54,1.31966806]
[1735815798072,8.04078251,207.57,207.55,1.31966806]
[1735815798769,8.04078251,207.57,207.56,1.31966806]
[1735815800753,0.5,207.62,207.56,1.31966806]
[1735815800948,8.04078251,207.58,207.56,1.31966806]
[1735815801574,8.04078251,207.58,207.57,1.31966806]
[1735815804455,8.04078251,207.58,207.5,7.57533702]
[1735815804653,8.04078251,207.55,207.5,7.57533702]
[1735815804880,8.04078251,207.55,207.51,1.31917894]
[1735815805766,8.04078251,207.55,207.52,1.31917894]
[1735815806079,8.04078251,207.56,207.52,1.31917894]
[1735815806262,8.04078251,207.57,207.53,1.31917894]
[1735815806973,8.04078251,207.57,207.54,1.31917894]
[1735815807167,8.04078251,207.56,207.54,1.31917894]
[1735815807356,8.04078251,207.55,207.54,1.31917894]
[1735815807769,8.04078251,207.55,207.48,22.85200206]
[1735815808276,8.04078251,207.55,207.49,1.31896518]
[1735815808776,8.04078251,207.54,207.49,1.31896518]
[1735815808974,8.04078251,207.54,207.5,1.31896518]
[1735815809164,32.66313004,207.6,207.5,1.31896518]
[1735815809165,8.04078251,207.55,207.5,1.31896518]
[1735815809770,8.04078251,207.55,207.51,1.31896518]
[1735815810279,8.04078251,207.55,207.52,1.31896518]
[1735815810481,8.04078251,207.56,207.52,1.31896518]
[1735815810878,8.04078251,207.56,207.53,1.31896518]
[1735815811469,8.04078251,207.56,207.54,1.31896518]
[1735815811982,0.5,207.6,207.48,22.85200206]
[1735815812175,8.04078251,207.55,207.48,22.85200206]
[1735815812580,8.04078251,207.55,207.49,1.31592792]
[1735815812875,8.04078251,207.55,207.49,9.35671043]
[1735815813078,8.04078251,207.55,207.49,1.31592792]
[1735815813277,8.04078251,207.55,207.5,1.31592792]
[1735815813982,8.04078251,207.55,207.51,1.31592792]
[1735815814684,8.04078251,207.55,207.52,1.31592792]
[1735815815588,8.04078251,207.55,207.53,1.31592792]
[1735815816081,8.54078251,207.54,207.53,1.31592792]
[1735815816285,8.04078251,207.54,207.48,15.61611953]
[1735815816987,8.04078251,207.54,207.49,1.31555296]
[1735815817484,8.04078251,207.53,207.5,1.31555296]
[1735815817863,8.04078251,207.53,207.51,1.31555296]
[1735815818660,8.04078251,207.53,207.52,1.31555296]
[1735815824999,8.04078251,207.53,207.44,17.25771953]
[1735815825299,8.04078251,207.5,207.44,9.68238251]
[1735815825672,8.04078251,207.5,207.45,1.31578413]
[1735815826301,8.04078251,207.5,207.46,1.31578413]
[1735815826899,8.04078251,207.5,207.47,1.31578413]
[1735815827393,8.04078251,207.5,207.44,9.68238251]
[1735815827394,8.04078251,207.5,207.48,1.31578413]
[1735815827596,8.04078251,207.51,207.48,1.31578413]
[1735815828269,8.04078251,207.51,207.49,1.31578413]
[1735815828908,8.04078251,207.51,207.5,1.31578413]
[1735815831106,8.04078251,207.51,207.44,8.04078251]
[1735815831270,8.04078251,207.51,207.42,20.34278277]
[1735815831271,8.04078251,207.48,207.42,7.57533702]
[1735815831464,8.04078251,207.47,207.42,7.57533702]
[1735815831691,8.04078251,207.47,207.43,1.31489528]
[1735815831873,8.04078251,207.48,207.43,1.31489528]
[1735815832482,8.04078251,207.48,207.44,1.31489528]
[1735815832688,8.04078251,207.47,207.44,1.31489528]
[1735815832890,8.04078251,207.46,207.44,1.31489528]
[1735815833100,8.04078251,207.46,207.45,1.31489528]
[1735815833997,0.5,207.52,207.45,1.31489528]
[1735815834293,8.54078251,207.52,207.45,9.35567779]
[1735815834488,8.54078251,207.52,207.46,1.31489528]
[1735815834699,8.54078251,207.52,207.46,9.35567779]
[1735815835070,8.54078251,207.52,207.47,1.31489528]
[1735815835496,0.5,207.52,207.47,1.31489528]
[1735815835695,0.5,207.52,207.46,8.04078251]
[1735815835696,8.54078251,207.52,207.48,1.31489528]
[1735815836095,0.5,207.52,207.48,1.31489528]
[1735815836270,8.04078251,207.53,207.48,1.31489528]
[1735815836480,0.5,207.52,207.49,1.31489528]
[1735815836667,8.04078251,207.53,207.49,1.31489528]
[1735815837198,8.04078251,207.53,207.47,8.04078251]
[1735815837991,8.04078251,207.53,207.48,1.31517363]
[1735815838375,8.54078251,207.52,207.48,1.31517363]
[1735815838588,8.54078251,207.52,207.49,1.31517363]
[1735815839084,8.54078251,207.52,207.5,1.31517363]
[1735815839708,8.54078251,207.52,207.45,8.04078251]
[1735815840507,8.54078251,207.52,207.46,1.31511054]
[1735815840896,8.04078251,207.51,207.46,1.31511054]
[1735815841195,8.04078251,207.51,207.43,8.04078251]
[1735815841196,0.5,207.5,207.47,1.31511054]
[1735815841605,0.5,207.5,207.48,1.31511054]
[1735815842309,0.5,207.5,207.49,1.31511054]
[1735815845319,8.04078251,207.51,207.49,1.31511054]
[1735815845817,0.5,207.5,207.44,8.04078251]
[1735815846004,8.54078251,207.55,207.47,8.04078251]
[1735815846696,8.04078251,207.52,207.47,8.040782]
[1735815846914,8.54078251,207.51,207.48,1.31540491]
[1735815847506,0.5,207.51,207.48,1.31540491]
[1735815847710,0.5,207.51,207.49,1.31540491]
[1735815847907,8.04078251,207.52,207.49,1.31540491]
[1735815848215,8.04078251,207.52,207.45,8.040782]
[1735815848216,8.04078251,207.52,207.5,1.31540491]
[1735815849110,8.04078251,207.52,207.45,8.040782]
[1735815849496,0.5,207.56,207.46,8.04078251]
[1735815849696,8.04078251,207.53,207.46,9.35659712]
[1735815850311,8.04078251,207.53,207.47,1.31581461]
[1735815850618,8.04078251,207.54,207.47,9.35659712]
[1735815850819,8.04078251,207.55,207.47,9.35659712]
[1735815851318,8.04078251,207.55,207.48,1.31581461]
[1735815851921,8.04078251,207.55,207.49,1.31581461]
[1735815852619,8.04078251,207.57,207.51,8.04078251]
[1735815852821,8.04078251,207.57,207.5,9.35659712]
[1735815853007,8.04078251,207.57,207.51,1.31581461]
[1735815853817,8.04078251,207.57,207.52,1.31581461]
[1735815854726,8.04078251,207.56,207.53,1.31581461]
[1735815855422,8.04078251,207.56,207.54,1.31581461]
[1735815855921,8.04078251,207.57,207.5,8.04078251]
[1735815856131,8.04078251,207.58,207.51,8.04078251]
[1735815856501,8.04078251,207.58,207.52,1.31495899]
[1735815857212,8.04078251,207.58,207.53,1.31495899]
[1735815857918,8.04078251,207.58,207.54,1.31495899]
[1735815858527,8.04078251,207.58,207.55,1.31495899]
[1735815859221,8.04078251,207.58,207.56,1.31495899]
[1735815859524,8.04078251,207.57,207.56,1.31495899]
[1735815861924,0.5,207.59,207.48,7.57399792]
[1735815862236,0.5,207.59,207.49,8.04078251]
[1735815862237,8.04078251,207.55,207.49,8.04078251]
[1735815862444,8.04078251,207.56,207.49,9.35484121]
[1735815863236,8.04078251,207.56,207.5,1.3140587]
[1735815863459,8.04078251,207.57,207.5,9.35484121]
[1735815863939,8.54078251,207.56,207.5,1.3140587]
[1735815864131,8.54078251,207.56,207.51,1.3140587]
[1735815864532,8.04078251,207.55,207.51,1.3140587]
[1735815864735,8.04078251,207.55,207.52,1.3140587]
[1735815865122,8.04078251,207.55,207.53,1.3140587]
[1735815865840,8.04078251,207.55,207.48,8.04078251]
[1735815866639,8.04078251,207.55,207.49,1.31457854]
[1735815867442,8.04078251,207.55,207.5,1.31457854]
[1735815868350,8.04078251,207.55,207.51,1.31457854]
[1735815868554,0.5,207.59,207.51,1.31457854]
[1735815868555,8.04078251,207.56,207.51,1.31457854]
[1735815868917,8.04078251,207.56,207.52,1.31457854]
[1735815869729,8.04078251,207.56,207.53,1.31457854]
[1735815869932,0.5,207.55,207.53,1.31457854]
[1735815870440,0.5,207.55,207.54,1.31457854]
[1735815876349,8.54078251,207.55,207.54,1.31457854]
[1735815877048,8.54078251,207.55,207.47,7.57399792]
[1735815877251,8.04078251,207.52,207.46,7.57399792]
[1735815877751,8.04078251,207.52,207.47,1.31504432]
[1735815878550,8.04078251,207.52,207.48,1.31504432]
[1735815879252,8.04078251,207.52,207.49,1.31504432]
[1735815880039,8.04078251,207.54,207.5,1.31504432]
[1735815880236,8.04078251,207.55,207.5,1.31504432]
[1735815880441,8.04078251,207.56,207.5,1.31504432]
[1735815880649,8.04078251,207.56,207.49,8.04078251]
[1735815880848,0.5,207.55,207.49,8.04078251]
[1735815881832,8.04078251,207.56,207.49,8.04078251]
[1735815882351,8.04078251,207.57,207.5,8.04078251]
[1735815882656,8.04078251,207.55,207.5,1.31425636]
[1735815882841,8.04078251,207.55,207.51,1.31425636]
[1735815883233,8.04078251,207.55,207.52,1.31425636]
[1735815883854,8.04078251,207.55,207.53,1.31425636]
[1735815884052,8.04078251,207.56,207.53,1.31425636]
[1735815884645,8.04078251,207.56,207.54,1.31425636]
[1735815885050,8.04078251,207.57,207.54,1.31425636]
[1735815885356,8.04078251,207.57,207.5,8.04078251]
[1735815886257,8.04078251,207.57,207.51,1.315121]
[1735815887063,8.04078251,207.57,207.52,1.315121]
[1735815887861,8.04078251,207.57,207.53,1.315121]
[1735815888568,8.04078251,207.57,207.54,1.315121]
[1735815889060,8.04078251,207.57,207.55,1.315121]
[1735815889958,8.04078251,207.57,207.5,8.04078251]
[1735815890647,8.04078251,207.58,207.51,9.35648972]
[1735815891143,8.04078251,207.58,207.52,1.31570721]
[1735815891855,8.04078251,207.58,207.53,1.31570721]
[1735815892252,8.04078251,207.58,207.54,1.31570721]
[1735815892677,8.04078251,207.57,207.54,1.31570721]
[1735815892843,8.04078251,207.57,207.55,1.31570721]
[1735815893677,8.04078251,207.57,207.5,8.04078251]
[1735815893960,0.5,207.61,207.51,31.81766651]
[1735815894143,8.04078251,207.58,207.51,31.81766651]
[1735815894342,8.04078251,207.59,207.52,9.35671652]
[1735815894873,8.04078251,207.59,207.53,1.31593401]
[1735815895673,8.04078251,207.59,207.54,1.31593401]
[1735815896484,8.04078251,207.59,207.55,1.31593401]
[1735815897371,8.04078251,207.58,207.56,1.31593401]
[1735815897846,8.04078251,207.58,207.51,8.04078251]
[1735815898369,8.04078251,207.58,207.52,1.31581227]
[1735815899375,8.04078251,207.58,207.53,1.31581227]
[1735815900051,8.04078251,207.58,207.54,1.31581227]
[1735815900567,8.04078251,207.58,207.51,8.04078251]
[1735815900867,8.04078251,207.58,207.55,1.31551461]
[1735815901069,6.76970221,207.58,207.55,1.31551461]
[1735815901568,6.76970221,207.58,207.56,1.31551461]
[1735815901868,8.54078251,207.57,207.56,1.31551461]
[1735815902065,8.54078251,207.57,207.5,23.776884]
[1735815902369,8.04078251,207.53,207.49,7.57399792]
[1735815902549,8.04078251,207.52,207.51,1.31570081]
[1735815902749,8.04078251,207.53,207.51,1.31570081]
[1735815903077,8.04078251,207.53,207.52,1.31570081]
[1735815904974,0.5,207.56,207.52,1.31570081]
[1735815905271,8.04078251,207.53,207.52,1.31570081]
[1735815905567,8.04078251,207.53,207.46,8.04078251]
[1735815906086,8.04078251,207.54,207.47,8.04078251]
[1735815906477,8.04078251,207.54,207.47,9.35722837]
[1735815907076,8.04078251,207.54,207.48,1.31644586]
[1735815907953,8.04078251,207.54,207.49,1.31644586]
[1735815908477,8.04078251,207.54,207.5,1.31644586]
[1735815909274,8.04078251,207.54,207.51,1.31644586]
[1735815909979,0.5,207.59,207.52,1.31644586]
[1735815910165,8.04078251,207.55,207.52,1.31644586]
[1735815910677,8.04078251,207.55,207.53,1.31644586]
[1735815911277,8.04078251,207.55,207.54,1.31644586]
[1735815911983,0.5,207.59,207.54,1.31644586]
[1735815912187,8.04078251,207.55,207.54,1.31644586]
[1735815912581,8.04078251,207.55,207.49,7.57399792]
[1735815912986,8.04078251,207.55,207.48,15.61478043]
[1735815913187,8.04078251,207.54,207.5,1.31596574]
[1735815913687,8.04078251,207.54,207.51,1.31596574]
[1735815914387,8.04078251,207.54,207.52,1.31596574]
[1735815914775,8.04078251,207.55,207.52,1.31596574]
[1735815915280,8.04078251,207.55,207.53,1.31596574]
[1735815915887,8.04078251,207.55,207.54,1.31596574]
[1735815917883,8.54078251,207.55,207.54,1.31596574]
[1735815918771,8.54078251,207.55,207.45,15.61478043]
[1735815918973,8.04078251,207.52,207.45,15.61478043]
[1735815919582,8.04078251,207.52,207.46,1.31589388]
[1735815920276,8.04078251,207.52,207.47,1.31589388]
[1735815920974,8.04078251,207.52,207.48,1.31589388]
[1735815921892,8.04078251,207.53,207.49,1.31589388]
[1735815922373,8.04078251,207.53,207.5,1.31589388]
[1735815923099,8.04078251,207.54,207.5,1.31589388]
[1735815923274,8.54078251,207.55,207.51,1.31589388]
[1735815923887,8.54078251,207.55,207.48,8.04078251]
[1735815924596,8.54078251,207.55,207.49,1.31574783]
[1735815925292,8.54078251,207.55,207.5,1.31574783]
[1735815926096,8.54078251,207.55,207.51,1.31574783]
[1735815926393,8.04078251,207.55,207.51,1.31574783]
[1735815926586,8.04078251,207.57,207.51,1.31574783]
[1735815927084,8.04078251,207.57,207.5,8.04078251]
[1735815927488,8.04078251,207.54,207.47,8.04078251]
[1735815927683,8.54078251,207.53,207.46,8.04078251]
[1735815928287,8.54078251,207.53,207.47,1.31653692]
[1735815929008,8.04078251,207.52,207.48,1.31653692]
[1735815929502,8.04078251,207.53,207.48,1.31653692]
[1735815929711,0.5,207.52,207.49,1.31653692]
[1735815930390,0.5,207.52,207.5,1.31653692]
[1735815930999,0.5,207.52,207.51,1.31653692]
[1735815932005,0.5,207.52,207.46,8.04078251]
[1735815932189,0.5,207.52,207.45,8.04078251]
[1735815932392,0.5,207.52,207.47,1.31482659]
[1735815933201,0.5,207.52,207.45,8.04078251]
[1735815933202,0.5,207.52,207.48,1.31482659]
[1735815933502,0.5,207.52,207.49,1.31482659]
[1735815934303,0.5,207.52,207.5,1.31482659]
[1735815935201,0.5,207.52,207.51,1.31482659]
[1735815935413,8.54078251,207.52,207.51,1.31482659]
[1735815936504,8.54078251,207.52,207.44,15.61478043]
[1735815937005,8.54078251,207.52,207.45,1.31472147]
[1735815937400,8.54078251,207.52,207.45,9.35550398]
[1735815937603,8.54078251,207.52,207.46,1.31472147]
[1735815938204,8.54078251,207.52,207.47,1.31472147]
[1735815938897,8.54078251,207.52,207.48,1.31472147]
[1735815939703,8.04078251,207.51,207.48,1.31472147]
[1735815939906,8.04078251,207.51,207.49,1.31472147]
[1735815940208,8.04078251,207.52,207.49,1.31472147]
[1735815940615,0.5,207.51,207.5,1.31472147]
[1735815941610,8.04078251,207.52,207.5,1.31472147]
[1735815942310,8.04078251,207.52,207.51,1.31472147]
[1735815945993,8.04078251,207.52,207.43,22.10968043]
[1735815946195,8.54078251,207.51,207.43,22.10968043]
[1735815946397,8.04078251,207.48,207.43,7.57399792]
[1735815946616,8.54078251,207.47,207.44,1.31544572]
[1735815946917,8.04078251,207.47,207.44,1.31544572]
[1735815947113,8.04078251,207.48,207.44,1.31544572]
[1735815947312,8.04078251,207.48,207.45,1.31544572]
[1735815947519,8.04078251,207.49,207.45,1.31544572]
[1735815947695,0.5,207.48,207.45,1.31544572]
[1735815948097,0.5,207.48,207.46,1.31544572]
[1735815948827,0.5,207.48,207.47,1.31544572]
[1735815955610,8.04078251,207.51,207.47,1.31544572]
[1735815955810,0.5,207.5,207.47,1.31544572]
[1735815956008,0.5,207.5,207.48,1.31544572]
[1735815956210,8.54078251,207.5,207.48,1.31544572]
[1735815956924,8.54078251,207.5,207.49,1.31544572]
[1735815959630,8.04078251,207.51,207.49,1.31544572]
[1735815960614,8.04078251,207.51,207.5,1.31544572]
[1735815962430,8.04078251,207.52,207.5,1.31544572]
[1735815963018,8.04078251,207.52,207.51,1.31544572]
[1735815964821,2.1282,207.55,207.51,1.31544572]
[1735815965008,8.04078251,207.52,207.51,1.31544572]
[1735815966528,2.1282,207.55,207.51,1.31544572]
[1735815966707,8.04078251,207.52,207.51,1.31544572]
[1735815967131,8.04078251,207.52,207.45,15.61478043]
[1735815967542,8.04078251,207.53,207.46,8.04078251]
[1735815968231,8.04078251,207.53,207.46,16.93078829]
[1735815968834,9.99999999,207.47,207.46,1.70370578]
[1735815969006,20.0,207.43,207.42,30.29599168]
[1735815969320,28.54078251,207.43,207.42,30.29599168]
[1735815969511,8.04078251,207.44,207.42,30.29599168]
[1735815969712,0.5,207.45,207.42,30.29599168]
[1735815969920,0.5,207.45,207.34,0.72316822]
[1735815970121,0.5,207.45,207.37,8.04078251]
[1735815970817,8.04078251,207.44,207.36,8.04078251]
[1735815971135,8.04078251,207.42,207.34,8.04078251]
[1735815971334,0.5,207.41,207.34,8.04078251]
[1735815971529,8.04078251,207.42,207.34,8.04078251]
[1735815971742,0.5,207.41,207.35,8.04078251]
[1735815972630,0.5,207.41,207.31,0.72328956]
[1735815972811,8.04078251,207.4,207.32,8.04078251]
[1735815973118,8.54078251,207.39,207.32,8.04078251]
[1735815973722,8.54078251,207.39,207.28,2.22866781]
[1735815973723,8.04078251,207.38,207.29,20.0]
[1735815973917,0.5,207.37,207.3,8.04078251]
[1735815974645,2.0764,207.4,207.32,8.04078251]
[1735815974950,6.0368,207.42,207.34,8.04078251]
[1735815974951,0.5,207.41,207.34,8.04078251]
[1735815975438,8.54078251,207.41,207.34,8.04078251]
[1735815979040,0.5,207.41,207.35,8.04078251]
[1735815981644,8.04078251,207.43,207.36,8.04078251]
[1735815981843,8.04078251,207.43,207.36,9.35154433]
[1735815982054,0.5,207.44,207.37,8.04078251]
[1735815982247,8.54078251,207.44,207.37,8.04078251]
[1735815982628,8.54078251,207.44,207.38,1.31076182]
[1735815983462,8.54078251,207.44,207.39,1.31076182]